bitfinex/quotes_BTCUSD_20251215
["timestamp","ask_amount","ask_price","bid_price","bid_amount"]
[1765822250064,0.01162074,86053.0,86051.0,0.13671785]
[1765822250274,0.0116202,86057.0,86053.0,0.01162074]
[1765822250528,0.01162007,86058.0,86054.0,0.01162061]
[1765822250729,0.01162034,86056.0,86054.0,0.07577287]
[1765822250842,0.01161993,86059.0,86057.0,0.04591]
[1765822251047,0.8598658,86070.0,86057.0,0.04591]
[1765822251048,0.24401201,86062.0,86058.0,0.06388866]
[1765822251256,0.24401201,86062.0,86061.0,0.04591]
[1765822251681,0.24401201,86062.0,86061.0,0.12007]
[1765822252983,0.24501201,86062.0,86061.0,0.12007]
[1765822253157,0.24501201,86062.0,86061.0,0.12168287]
[1765822253486,0.08847028,86062.0,86061.0,0.13564902]
[1765822253797,0.24501201,86062.0,86061.0,0.06148902]
[1765822253999,0.24501201,86062.0,86061.0,0.00161287]
[1765822255351,0.24501201,86062.0,86054.0,0.01848]
[1765822255352,0.2324095,86055.0,86054.0,0.01848]
[1765822255764,0.23240756,86056.0,86054.0,0.13855]
[1765822255965,0.24402736,86057.0,86055.0,0.04591]
[1765822256172,0.23240252,86058.0,86056.0,0.06208919]
[1765822256377,0.23240252,86058.0,86056.0,0.01617919]
[1765822256625,0.22824488,86058.0,86057.0,0.12007]
[1765822258779,0.01161953,86062.0,86057.0,0.12168287]
[1765822258996,0.24401244,86062.0,86061.0,0.08056]
[1765822259207,0.24401244,86062.0,86061.0,0.09897325]
[1765822259426,0.24401244,86062.0,86061.0,0.17313325]
[1765822259629,0.2324014,86058.0,86057.0,0.00161287]
[1765822259840,0.2324014,86058.0,86057.0,0.07577287]
[1765822260053,0.2324014,86058.0,86057.0,0.12168287]
[1765822260261,0.2324014,86058.0,86057.0,0.04752287]
[1765822260476,0.2324014,86058.0,86057.0,0.06315708]
[1765822260692,0.2324014,86058.0,86057.0,0.12168287]
[1765822261760,0.23239877,86059.0,86057.0,0.13330307]
[1765822261978,0.23239908,86059.0,86057.0,0.00161287]
[1765822262190,0.24401635,86060.0,86058.0,0.11693]
[1765822262401,0.2323987,86059.0,86058.0,0.06763]
[1765822262641,0.2323987,86059.0,86032.0,0.34870382]
[1765822262642,0.232423,86050.0,86047.0,0.06763]
[1765822262855,0.232423,86050.0,86039.0,0.03472]
[1765822262856,0.23245002,86040.0,86039.0,0.03472]
[1765822263093,0.23245002,86040.0,86039.0,0.03660662]
[1765822263305,0.23245002,86040.0,86039.0,0.00011441]
[1765822263521,0.01162223,86042.0,86039.0,0.29348968]
[1765822263723,0.23245002,86040.0,86039.0,0.00011441]
[1765822265013,0.37387426,86040.0,86039.0,0.00011441]
[1765822265253,0.34876426,86040.0,86039.0,0.00011441]
[1765822265669,0.22882411,86040.0,86039.0,0.00111441]
[1765822265883,0.22882411,86040.0,86039.0,0.00211441]
[1765822266086,0.22882411,86040.0,86039.0,0.00011441]
[1765822266283,0.22982411,86040.0,86039.0,0.00011441]
[1765822266492,0.23082411,86040.0,86039.0,0.00011441]
[1765822267458,0.22775878,86040.0,86039.0,0.00011441]
[1765822269755,0.25286878,86040.0,86039.0,0.00011441]
[1765822269896,0.22775878,86040.0,86039.0,0.00011441]
[1765822270113,0.22775878,86040.0,86039.0,0.11704441]
[1765822270332,0.22775878,86040.0,86039.0,0.12874885]
[1765822270533,0.22342161,86040.0,86039.0,0.06111885]
[1765822270782,0.22342161,86040.0,86039.0,0.04941441]
[1765822270982,0.33961624,86040.0,86039.0,0.00011441]
[1765822271184,0.36442537,86040.0,86039.0,0.00011441]
[1765822271341,0.33961624,86040.0,86039.0,0.00011441]
[1765822271542,0.45593048,86040.0,86039.0,0.00011441]
[1765822271761,0.45593048,86040.0,86039.0,0.04941441]
[1765822271762,0.36442537,86040.0,86039.0,0.04941441]
[1765822271966,0.33961624,86040.0,86039.0,0.04941441]
[1765822272182,0.002,86040.0,86039.0,0.23509169]
[1765822272374,0.02480913,86048.0,86047.0,0.23243111]
[1765822272591,0.07350456,86057.0,86047.0,0.23243111]
[1765822272592,0.24403031,86055.0,86052.0,0.01162088]
[1765822272921,0.24403281,86054.0,86053.0,0.1549578]
[1765822273091,0.23243111,86047.0,86046.0,0.01848]
[1765822273515,0.23243111,86047.0,86039.0,0.00011441]
[1765822273516,0.22788881,86040.0,86039.0,0.00011441]
[1765822273721,0.34408344,86040.0,86039.0,0.00011441]
[1765822275204,0.46039768,86040.0,86039.0,0.00011441]
[1765822275352,0.46039768,86040.0,86039.0,0.00111441]
[1765822275558,0.48520681,86040.0,86039.0,0.00111441]
[1765822275967,0.51031681,86040.0,86039.0,0.00111441]
[1765822276543,0.50652324,86040.0,86039.0,0.00111441]
[1765822276757,0.48141324,86040.0,86039.0,0.00011441]
[1765822277346,0.365099,86040.0,86039.0,0.11704441]
[1765822277555,0.34028987,86040.0,86039.0,0.12874885]
[1765822277761,0.22409524,86040.0,86039.0,0.12874885]
[1765822278769,0.22409524,86040.0,86039.0,0.00011441]
[1765822279144,0.11619463,86041.0,86040.0,0.23245002]
[1765822279359,0.01162169,86046.0,86042.0,0.01162223]
[1765822279505,0.23242841,86048.0,86047.0,0.08402]
[1765822279706,0.22793439,86048.0,86047.0,0.08402]
[1765822279931,0.22793439,86048.0,86047.0,0.09934629]
[1765822280539,0.22793439,86048.0,86047.0,0.16697629]
[1765822281515,0.22793439,86048.0,86042.0,0.00161287]
[1765822281802,0.244061,86045.0,86042.0,0.00161287]
[1765822281985,0.23243921,86044.0,86042.0,0.00161287]
[1765822282115,0.03646527,86051.0,86042.0,0.00161287]
[1765822282116,0.86668628,86060.0,86044.0,0.06092196]
[1765822282320,0.86668628,86060.0,86042.0,0.00161287]
[1765822282321,0.01162142,86048.0,86042.0,0.00161287]
[1765822282636,0.00999313,86040.0,86039.0,0.00011441]
[1765822283191,0.11631424,86042.0,86039.0,0.00011441]
[1765822283339,0.02484626,86053.0,86039.0,0.00011441]
[1765822283340,0.02484626,86053.0,86050.0,0.01162115]
[1765822283546,0.04133175,86065.0,86056.0,0.01162034]
[1765822283748,0.02484626,86069.0,86058.0,0.06092007]
[1765822283952,0.01078511,86069.0,86060.0,0.0116198]
[1765822284148,0.51713881,86070.0,86060.0,0.0116198]
[1765822284377,0.01181899,86066.0,86061.0,0.01161966]
[1765822284579,0.0002,86066.0,86063.0,0.01161939]
[1765822284788,0.0002,86066.0,86065.0,0.2323825]
[1765822285000,0.0002,86066.0,86065.0,0.2816825]
[1765822285191,0.0002,86066.0,86064.0,0.23238274]
[1765822285192,0.0032,86066.0,86064.0,0.23238274]
[1765822285511,0.0032,86066.0,86065.0,0.3493125]
[1765822285713,0.0062,86066.0,86065.0,0.43465805]
[1765822286096,0.11951424,86066.0,86065.0,0.08373268]
[1765822286471,0.0032,86066.0,86063.0,0.01161939]
[1765822286655,0.0032,86066.0,86065.0,0.2323825]
[1765822286829,0.11951424,86066.0,86065.0,0.2323825]
[1765822287034,0.11631424,86062.0,86061.0,0.01161966]
[1765822287233,0.11631424,86062.0,86061.0,0.29407168]
[1765822287796,0.11632169,86062.0,86061.0,0.05005872]
[1765822288261,0.001,86062.0,86061.0,0.29568455]
[1765822288598,0.001,86062.0,86055.0,0.06763]
[1765822288599,0.2324068,86056.0,86048.0,0.01162142]
[1765822288800,0.2324149,86053.0,86047.0,0.06763]
[1765822288999,0.232423,86050.0,86049.0,0.01848]
[1765822289225,0.232423,86050.0,86047.0,0.06763]
[1765822289226,0.01162115,86050.0,86047.0,0.06763]
[1765822289467,0.01162115,86050.0,86046.0,0.03472]
[1765822289468,0.24404699,86049.0,86046.0,0.03472]
[1765822289664,0.23243111,86047.0,86046.0,0.06671557]
[1765822289842,0.23243026,86048.0,86046.0,0.03472]
[1765822290048,0.01162088,86052.0,86048.0,0.04964]
[1765822290219,0.04133175,86065.0,86053.0,0.01162074]
[1765822290220,0.0116202,86057.0,86053.0,0.01162074]
[1765822290423,0.0116202,86057.0,86054.0,0.06817]
[1765822290622,0.24402367,86058.0,86056.0,0.04964]
[1765822290845,0.23241277,86054.0,86050.0,0.01162115]
[1765822291178,0.01162007,86058.0,86051.0,0.01162101]
[1765822291179,0.01162034,86056.0,86051.0,0.01162101]
[1765822291321,0.01162034,86056.0,86050.0,0.01162115]
[1765822291322,0.23241341,86054.0,86050.0,0.31221358]
[1765822291535,0.0116202,86057.0,86055.0,0.04964]
[1765822291734,0.0116202,86057.0,86056.0,0.04964]
[1765822292308,0.0116202,86057.0,86056.0,0.12003]
[1765822292451,0.24401184,86062.0,86058.0,0.23240121]
[1765822292655,0.02511,86080.0,86061.0,0.05873966]
[1765822292656,0.01161912,86065.0,86061.0,0.05873966]
[1765822292864,0.0002,86066.0,86065.0,0.04712]
[1765822293265,0.2325798,86066.0,86065.0,0.04712]
[1765822293468,0.22869296,86066.0,86065.0,0.04712]
[1765822293806,0.01161926,86064.0,86059.0,0.30278769]
[1765822294015,0.23239493,86061.0,86060.0,0.05600468]
[1765822294416,0.2323987,86059.0,86058.0,0.00161287]
[1765822294851,0.24401296,86061.0,86035.0,0.02324635]
[1765822294852,0.0116202,86057.0,86050.0,0.01848]
[1765822295057,8.418e-05,86064.0,86063.0,0.2323879]
[1765822295206,8.418e-05,86064.0,86063.0,0.30978266]
[1765822295527,8.418e-05,86064.0,86063.0,0.14778476]
[1765822295528,0.23246938,86064.0,86063.0,0.14778476]
[1765822296168,8.418e-05,86064.0,86063.0,0.14778476]
[1765822296349,0.23446938,86064.0,86063.0,0.14778476]
[1765822296765,0.00208418,86064.0,86063.0,0.38017266]
[1765822297095,0.00208418,86064.0,86063.0,0.07739476]
[1765822297096,0.23646938,86064.0,86063.0,0.07739476]
[1765822297251,0.24402402,86059.0,86056.0,0.07039]
[1765822297450,0.01161993,86059.0,86058.0,0.04712]
[1765822297650,0.01161966,86061.0,86058.0,0.04712]
[1765822297855,0.24401392,86061.0,86059.0,0.07039]
[1765822298094,0.24401392,86061.0,86060.0,0.10180213]
[1765822298327,0.00408418,86064.0,86060.0,0.10180213]
[1765822298530,0.00408418,86064.0,86063.0,0.08268]
[1765822298531,0.00208418,86064.0,86063.0,0.08268]
[1765822298699,0.2323852,86064.0,86063.0,0.08268]
[1765822298872,0.04153175,86077.0,86068.0,0.2323744]
[1765822298873,0.02486292,86069.0,86068.0,0.2323744]
[1765822299076,0.01161804,86073.0,86069.0,0.01161858]
[1765822299300,0.01161804,86073.0,86072.0,0.04712]
[1765822299498,0.2323609,86073.0,86072.0,0.04712]
[1765822299713,0.2323609,86073.0,86072.0,0.11751]
[1765822299904,0.2323609,86073.0,86072.0,0.04712]
[1765822300117,0.2323609,86073.0,86072.0,0.0529939]
[1765822300312,0.2323798,86066.0,86065.0,0.07039]
[1765822300516,0.2323798,86066.0,86063.0,0.03717287]
[1765822300517,0.22979301,86064.0,86063.0,0.15468287]
[1765822300687,0.22979301,86064.0,86063.0,0.08429287]
[1765822300888,0.22979301,86064.0,86063.0,0.00161287]
[1765822301783,0.01162047,86055.0,86050.0,0.02876851]
[1765822301985,0.01162047,86055.0,86050.0,0.02885269]
[1765822301986,0.2324203,86051.0,86050.0,0.02885269]
[1765822302210,0.2536403,86051.0,86050.0,0.02885269]
[1765822302410,0.2536403,86051.0,86050.0,8.418e-05]
[1765822302411,0.2324203,86051.0,86050.0,8.418e-05]
[1765822302612,0.25083898,86051.0,86050.0,8.418e-05]
[1765822302815,0.34594067,86051.0,86050.0,8.418e-05]
[1765822303023,0.38838067,86051.0,86050.0,8.418e-05]
[1765822303232,1.39038067,86051.0,86050.0,4.18e-06]
[1765822303483,1.41324266,86051.0,86050.0,4.18e-06]
[1765822303700,0.39302266,86051.0,86050.0,4.18e-06]
[1765822303906,0.23161898,86051.0,86050.0,4.18e-06]
[1765822304108,1.36916067,86051.0,86050.0,4.18e-06]
[1765822304313,1.39402266,86051.0,86050.0,4.18e-06]
[1765822304519,1.3909657,86051.0,86050.0,4.18e-06]
[1765822304727,1.3552657,86051.0,86050.0,4.18e-06]
[1765822304920,1.2633657,86051.0,86050.0,4.18e-06]
[1765822305124,0.77722401,86051.0,86050.0,4.18e-06]
[1765822305431,0.80044401,86051.0,86050.0,4.18e-06]
[1765822305593,0.9369857,86051.0,86050.0,4.18e-06]
[1765822305791,0.97005979,86051.0,86050.0,4.18e-06]
[1765822306001,0.9379857,86051.0,86050.0,4.18e-06]
[1765822306218,1.44325979,86051.0,86050.0,4.18e-06]
[1765822306717,1.44125979,86051.0,86050.0,4.18e-06]
[1765822306951,1.44325979,86051.0,86050.0,4.18e-06]
[1765822307152,1.4131857,86051.0,86050.0,4.18e-06]
[1765822307362,1.39198099,86051.0,86050.0,4.18e-06]
[1765822307525,1.38780937,86051.0,86050.0,4.18e-06]
[1765822308092,1.38580937,86051.0,86050.0,4.18e-06]
[1765822308286,1.11470937,86051.0,86050.0,4.18e-06]
[1765822308497,1.11570937,86051.0,86050.0,4.18e-06]
[1765822308701,1.02338937,86051.0,86050.0,4.18e-06]
[1765822308936,1.00358937,86051.0,86050.0,4.18e-06]
[1765822309159,0.25026768,86051.0,86050.0,4.18e-06]
[1765822309305,0.2253904,86051.0,86050.0,4.18e-06]
[1765822309500,0.22258516,86051.0,86050.0,4.18e-06]
[1765822309699,0.24380516,86051.0,86050.0,4.18e-06]
[1765822309961,0.35912685,86051.0,86050.0,4.18e-06]
[1765822310138,1.36012685,86051.0,86050.0,4.18e-06]
[1765822310303,1.40622413,86051.0,86050.0,4.18e-06]
[1765822310508,1.69692413,86051.0,86050.0,4.18e-06]
[1765822310943,1.69492413,86051.0,86050.0,4.18e-06]
[1765822311163,1.67004685,86051.0,86050.0,4.18e-06]
[1765822311382,1.69493065,86051.0,86050.0,4.18e-06]
[1765822311583,1.69099281,86051.0,86050.0,4.18e-06]
[1765822311789,1.69199281,86051.0,86050.0,4.18e-06]
[1765822311958,1.69399281,86051.0,86050.0,4.18e-06]
[1765822312168,1.69299281,86051.0,86050.0,4.18e-06]
[1765822312608,1.69199281,86051.0,86050.0,4.18e-06]
[1765822312969,1.69299281,86051.0,86050.0,4.18e-06]
[1765822313391,1.69399281,86051.0,86050.0,4.18e-06]
[1765822313723,1.59754839,86051.0,86050.0,4.18e-06]
[1765822314020,1.61876839,86051.0,86050.0,4.18e-06]
[1765822314161,1.56644425,86051.0,86050.0,4.18e-06]
[1765822314703,1.58310786,86051.0,86050.0,4.18e-06]
[1765822315494,1.61421215,86051.0,86050.0,4.18e-06]
[1765822316082,1.58310786,86051.0,86050.0,4.18e-06]
[1765822316414,0.56188786,86051.0,86050.0,4.18e-06]
[1765822316615,1.55822406,86051.0,86050.0,4.18e-06]
[1765822316831,1.58310786,86051.0,86050.0,4.18e-06]
[1765822317508,1.97598699,86051.0,86050.0,4.18e-06]
[1765822317697,1.97598699,86051.0,86040.0,0.01324445]
[1765822317698,1.4200074,86041.0,86040.0,0.01324445]
[1765822317903,1.46345531,86041.0,86040.0,0.01324445]
[1765822318265,0.01162533,86019.0,86015.0,0.01162587]
[1765822318470,0.23251647,86016.0,86015.0,0.00161287]
[1765822319168,0.01162723,86005.0,86002.0,0.03556]
[1765822319366,0.01162723,86005.0,86002.0,0.27973912]
[1765822319589,0.24417258,86005.0,86004.0,0.04712]
[1765822319794,0.23254216,86006.0,86004.0,0.11751]
[1765822319999,0.23254461,86005.0,86004.0,0.07039]
[1765822320185,0.23255002,86003.0,86002.0,0.03556]
[1765822320407,0.23263408,86003.0,86002.0,0.03556]
[1765822320687,0.23263408,86003.0,85996.0,0.03556]
[1765822320688,0.23256625,85997.0,85996.0,0.03556]
[1765822320878,0.23256625,85997.0,85990.0,0.01870339]
[1765822320879,0.23258247,85991.0,85990.0,0.01870339]
[1765822321109,0.23258247,85991.0,85980.0,0.07039]
[1765822321110,0.01163047,85981.0,85980.0,0.02396416]
[1765822321357,0.24424,85981.0,85980.0,0.02396416]
[1765822321544,0.24424,85981.0,85970.0,0.08202196]
[1765822321545,0.00825565,85973.0,85970.0,0.01867929]
[1765822321758,0.23263388,85972.0,85971.0,0.00658719]
[1765822321987,0.23263388,85972.0,85969.0,0.03556]
[1765822321988,0.23263929,85970.0,85969.0,0.03556]
[1765822322200,0.23266364,85961.0,85960.0,0.01833688]
[1765822322629,0.24430251,85959.0,85956.0,0.0004]
[1765822322844,0.23267316,85958.0,85956.0,0.0004]
[1765822323488,0.22987499,85958.0,85956.0,0.0004]
[1765822323700,0.11632169,85957.0,85956.0,0.0004]
[1765822324521,0.11632169,85957.0,85956.0,0.0034]
[1765822324669,0.13754169,85957.0,85956.0,0.0034]
[1765822324879,0.13754169,85957.0,85956.0,0.0004]
[1765822324880,0.11632169,85957.0,85956.0,0.0004]
[1765822325077,0.13754169,85957.0,85956.0,0.0024]
[1765822325284,0.11632169,85957.0,85956.0,0.0044]
[1765822325483,0.11635953,85957.0,85956.0,0.0044]
[1765822325683,8.399e-05,85961.0,85956.0,0.12383287]
[1765822325951,8.399e-05,85961.0,85960.0,0.28034635]
[1765822326133,8.399e-05,85961.0,85960.0,0.04929287]
[1765822326302,8.399e-05,85961.0,85960.0,0.11943287]
[1765822326912,8.399e-05,85961.0,85960.0,0.04929287]
[1765822327114,8.399e-05,85961.0,85960.0,0.00261287]
[1765822327317,0.11067714,85961.0,85960.0,0.001]
[1765822327519,0.13766352,85961.0,85960.0,0.001]
[1765822327758,0.02130399,85961.0,85960.0,0.001]
[1765822327950,1.44456529,85961.0,85960.0,0.001]
[1765822328281,1.44456529,85961.0,85960.0,1e-08]
[1765822328282,1.39323551,85961.0,85960.0,1e-08]
[1765822328488,1.39323551,85961.0,85960.0,0.00100001]
[1765822328687,1.3892959,85961.0,85960.0,0.00100001]
[1765822328893,0.3892959,85961.0,85960.0,1e-08]
[1765822329085,1.45061881,85961.0,85960.0,1e-08]
[1765822329288,1.3892959,85961.0,85960.0,1e-08]
[1765822329819,1.3892959,85961.0,85950.0,0.01992796]
[1765822329820,0.34904483,85953.0,85950.0,0.01992796]
[1765822330108,1.69294483,85953.0,85940.0,0.02300798]
[1765822330855,0.69294483,85953.0,85940.0,0.02300798]
[1765822331061,1.69294483,85953.0,85940.0,0.02300798]
[1765822331266,1.69694483,85953.0,85940.0,0.02300798]
[1765822331476,1.58598159,85953.0,85940.0,0.02300798]
[1765822331846,0.64465606,85953.0,85940.0,0.02300798]
[1765822332182,1.66357619,85953.0,85940.0,0.02300798]
[1765822332810,1.58231464,85953.0,85940.0,0.02300798]
[1765822333039,0.70309464,85953.0,85940.0,0.02300798]
[1765822333451,0.68461464,85953.0,85940.0,0.02300798]
[1765822333655,0.2581653,85953.0,85941.0,0.07014]
[1765822333864,1.69991547,85953.0,85940.0,0.02300798]
[1765822334064,1.72446661,85953.0,85940.0,0.02300798]
[1765822334478,1.71759753,85953.0,85940.0,0.02300798]
[1765822334819,1.76461592,85953.0,85940.0,0.02300798]
[1765822335019,0.76661592,85953.0,85940.0,0.02300798]
[1765822335304,1.76561592,85953.0,85940.0,0.02300798]
[1765822335498,0.34904796,85941.0,85940.0,0.02300798]
[1765822335699,1.38488796,85941.0,85940.0,0.02300798]
[1765822335845,0.34908046,85929.0,85928.0,0.0004]
[1765822336045,0.36644046,85929.0,85928.0,0.0004]
[1765822336242,0.48263509,85929.0,85928.0,0.0004]
[1765822337142,0.48263509,85929.0,85928.0,0.00078173]
[1765822337143,1.90203639,85929.0,85928.0,0.00078173]
[1765822337352,1.90203639,85929.0,85928.0,0.00178173]
[1765822337587,1.89738769,85929.0,85928.0,0.00278173]
[1765822338049,1.89738769,85929.0,85928.0,0.00178173]
[1765822338294,1.89938769,85929.0,85928.0,0.00078173]
[1765822338533,1.84006478,85929.0,85928.0,0.00078173]
[1765822339360,1.86457352,85929.0,85928.0,0.00078173]
[1765822339573,0.34912922,85911.0,85910.0,0.01562868]
[1765822339790,0.34912922,85911.0,85910.0,0.00011441]
[1765822339791,1.79186385,85911.0,85910.0,0.00011441]
[1765822339987,1.80922385,85911.0,85910.0,0.00011441]
[1765822340332,1.92056515,85911.0,85910.0,0.00011441]
[1765822340467,0.35807839,85910.0,85909.0,1e-08]
[1765822340671,1.43359841,85910.0,85909.0,0.00011444]
[1765822341317,1.68991809,85885.0,85884.0,0.0004]
[1765822341537,1.72575809,85885.0,85884.0,0.00078118]
[1765822341696,1.74311809,85885.0,85884.0,0.00078118]
[1765822343000,1.72463809,85885.0,85884.0,0.00078118]
[1765822343207,1.6930997,85885.0,85884.0,0.00078118]
[1765822343422,1.6572597,85885.0,85884.0,0.00078118]
[1765822343784,1.51014733,85885.0,85884.0,0.00178118]
[1765822343995,1.25780733,85885.0,85884.0,0.00178118]
[1765822344205,1.25780733,85885.0,85884.0,0.00078118]
[1765822344206,0.40637716,85885.0,85884.0,0.00078118]
[1765822344421,0.06727716,85885.0,85884.0,0.00078118]
[1765822344848,0.06727716,85885.0,85884.0,0.00239405]
[1765822345047,0.06727716,85885.0,85884.0,0.12021405]
[1765822346123,0.06727716,85885.0,85884.0,0.00539405]
[1765822346304,0.06727716,85885.0,85884.0,0.12021405]
[1765822346508,0.06727716,85885.0,85884.0,0.05107405]
[1765822346717,0.06727716,85885.0,85884.0,0.00639405]
[1765822346880,0.06727716,85885.0,85884.0,0.00378118]
[1765822346881,1.11199029,85885.0,85884.0,0.00378118]
[1765822347262,0.35003029,85885.0,85884.0,0.00578118]
[1765822347494,0.64073029,85885.0,85884.0,0.00578118]
[1765822347654,0.61337716,85885.0,85884.0,0.00378118]
[1765822348022,0.06827716,85885.0,85884.0,0.00378118]
[1765822348168,0.06827716,85885.0,85884.0,0.12321405]
[1765822348169,0.001,85885.0,85884.0,0.12321405]
[1765822348623,0.001,85885.0,85884.0,0.13669988]
[1765822348793,0.001,85885.0,85884.0,0.13369988]
[1765822349141,0.23286682,85886.0,85884.0,0.13369988]
[1765822349343,0.23286682,85886.0,85885.0,0.15257]
[1765822350601,0.23286682,85886.0,85885.0,0.15418287]
[1765822350805,0.23286682,85886.0,85885.0,0.16977927]
[1765822351116,0.24448905,85894.0,85890.0,0.01164279]
[1765822351402,0.23285316,85892.0,85890.0,0.00161287]
[1765822351630,0.01164171,85898.0,85893.0,0.05209697]
[1765822351833,0.23284356,85895.0,85894.0,0.01252698]
[1765822352368,0.34918343,85891.0,85890.0,0.00161287]
[1765822352725,0.34918343,85891.0,85890.0,0.00461287]
[1765822352968,0.23286682,85886.0,85884.0,0.00078118]
[1765822354271,0.23286682,85886.0,85884.0,0.00278118]
[1765822354479,0.22896329,85886.0,85884.0,0.00278118]
[1765822355315,0.23286953,85885.0,85884.0,0.00578118]
[1765822355555,0.3665597,85885.0,85884.0,0.00578118]
[1765822356616,0.34650782,85885.0,85884.0,0.00078118]
[1765822356819,0.34650782,85885.0,85884.0,0.00378118]
[1765822357018,0.34650782,85885.0,85884.0,0.00478118]
[1765822357453,0.23017765,85885.0,85884.0,0.00478118]
[1765822357669,0.24753765,85885.0,85884.0,0.00478118]
[1765822358321,0.23017765,85885.0,85884.0,0.00478118]
[1765822358616,0.67643543,85885.0,85884.0,0.00478118]
[1765822358833,0.65907543,85885.0,85884.0,0.00478118]
[1765822360091,0.02470952,85885.0,85884.0,0.35498629]
[1765822360294,0.24449453,85892.0,85887.0,0.0116432]
[1765822360444,0.00999313,85904.0,85887.0,0.0116432]
[1765822360445,0.12281646,85897.0,85890.0,0.03405]
[1765822360653,0.23284795,85893.0,85892.0,0.03405]
[1765822360862,0.23286953,85885.0,85884.0,0.00478118]
[1765822361039,0.22984755,85885.0,85884.0,0.00478118]
[1765822361244,0.22984755,85885.0,85884.0,0.00339405]
[1765822361452,0.22984755,85885.0,85884.0,0.01131933]
[1765822362033,0.23286682,85886.0,85884.0,0.12903933]
[1765822362348,0.23286953,85885.0,85884.0,0.12903933]
[1765822362552,0.23286953,85885.0,85884.0,0.06128933]
[1765822362769,0.23286953,85885.0,85884.0,0.01031933]
[1765822363178,0.23286953,85885.0,85884.0,0.00639405]
[1765822363385,0.0116432,85887.0,85884.0,0.12211405]
[1765822363782,0.0116432,85887.0,85884.0,0.00539405]
[1765822363783,0.3491997,85885.0,85884.0,0.00539405]
[1765822364013,0.3491997,85885.0,85884.0,0.00739405]
[1765822364234,0.11633017,85885.0,85884.0,0.00739405]
[1765822364452,0.24449547,85892.0,85888.0,0.23285618]
[1765822364677,0.24449547,85892.0,85889.0,0.30571276]
[1765822364887,0.0306625,85896.0,85892.0,0.09366252]
[1765822365089,0.04230407,85899.0,85895.0,0.04797]
[1765822365290,0.04230407,85899.0,85898.0,0.04797]
[1765822365291,0.0306625,85899.0,85898.0,0.04797]
[1765822365496,0.03106873,85902.0,85900.0,0.23282669]
[1765822365629,0.02735756,85902.0,85900.0,0.23443956]
[1765822365859,0.11633017,85914.0,85906.0,0.01164063]
[1765822365860,0.01163995,85911.0,85906.0,0.01164063]
[1765822366072,0.23280718,85908.0,85907.0,0.03405]
[1765822366271,0.24359882,85908.0,85907.0,0.03566287]
[1765822366721,0.23283971,85896.0,85895.0,0.002]
[1765822366918,0.34916988,85896.0,85895.0,0.002]
[1765822367094,0.36652988,85896.0,85895.0,0.002]
[1765822367323,0.23286479,85887.0,85884.0,0.01930118]
[1765822367679,0.23286953,85885.0,85884.0,0.00078118]
[1765822368046,0.23286682,85886.0,85884.0,0.00078118]
[1765822368211,0.23286953,85885.0,85884.0,0.00078118]
[1765822369271,0.23286953,85885.0,85884.0,0.00278118]
[1765822369477,0.25022953,85885.0,85884.0,0.00278118]
[1765822369648,0.26022266,85885.0,85884.0,0.00278118]
[1765822369850,0.26022266,85885.0,85884.0,0.00378118]
[1765822370056,0.24286266,85885.0,85884.0,0.00378118]
[1765822370620,0.28088733,85885.0,85884.0,0.00078118]
[1765822370798,0.23942267,85885.0,85884.0,0.00278118]
[1765822371020,0.23942267,85885.0,85884.0,0.00078118]
[1765822371021,0.22942954,85885.0,85884.0,0.00078118]
[1765822371356,0.24678954,85885.0,85884.0,0.00278118]
[1765822371569,0.36311971,85885.0,85884.0,0.00278118]
[1765822371774,0.38047971,85885.0,85884.0,0.00278118]
[1765822371913,0.36311971,85885.0,85884.0,0.00378118]
[1765822372313,0.36620629,85885.0,85884.0,0.00378118]
[1765822372659,0.38846264,85885.0,85884.0,0.00378118]
[1765822373450,0.38846264,85885.0,85884.0,0.00278118]
[1765822373785,0.38846264,85885.0,85884.0,0.00078118]
[1765822373982,0.38846264,85885.0,85884.0,0.00178118]
[1765822374625,0.40970701,85885.0,85884.0,0.00178118]
[1765822374742,0.4029517,85885.0,85884.0,0.00178118]
[1765822375122,1.68285177,85885.0,85884.0,0.00178118]
[1765822375477,1.69365158,85885.0,85884.0,0.00178118]
[1765822376090,1.68285177,85885.0,85884.0,0.00178118]
[1765822376650,1.67967753,85885.0,85884.0,0.00078118]
[1765822377291,1.72969592,85885.0,85884.0,0.00078118]
[1765822377507,1.73069592,85885.0,85884.0,0.00078118]
[1765822378299,1.73169592,85885.0,85884.0,0.00078118]
[1765822378710,1.73169592,85885.0,85851.0,0.03405]
[1765822378711,1.58176752,85871.0,85851.0,0.03405]
[1765822378967,1.61764752,85871.0,85870.0,0.0248784]
[1765822379146,1.63500752,85871.0,85870.0,0.00011443]
[1765822379338,1.69633043,85871.0,85870.0,0.00011443]
[1765822379534,1.76729317,85871.0,85870.0,0.00011443]
[1765822379762,1.76729317,85871.0,85860.0,0.01352596]
[1765822379763,1.58364614,85861.0,85860.0,0.01352596]
[1765822379966,1.64439234,85861.0,85860.0,8.399e-05]
[1765822380165,1.66175234,85861.0,85860.0,8.399e-05]
[1765822380515,1.67326546,85861.0,85860.0,8.399e-05]
[1765822380946,1.73458837,85861.0,85860.0,8.399e-05]
[1765822381152,1.77606368,85861.0,85860.0,8.399e-05]
[1765822381362,1.73658837,85861.0,85860.0,8.399e-05]
[1765822381567,1.73658837,85861.0,85823.0,0.0004]
[1765822381568,0.72178074,85845.0,85823.0,0.0004]
[1765822381777,1.74030074,85845.0,85844.0,0.00051439]
[1765822381979,1.67176235,85845.0,85844.0,0.00051439]
[1765822382183,1.68277994,85845.0,85844.0,0.00051439]
[1765822382386,1.80647698,85845.0,85844.0,0.00051439]
[1765822382601,1.66425994,85845.0,85844.0,0.00051439]
[1765822382806,1.70113994,85845.0,85844.0,0.00051439]
[1765822383224,1.10447994,85845.0,85844.0,0.00051439]
[1765822383422,0.86665994,85845.0,85844.0,0.00051439]
[1765822383632,0.78767994,85845.0,85844.0,0.00051439]
[1765822384070,0.78667994,85845.0,85844.0,0.00051439]
[1765822384294,0.85867994,85845.0,85844.0,0.00051439]
[1765822384713,0.85967994,85845.0,85844.0,0.00051439]
[1765822385360,0.64889994,85845.0,85844.0,0.00051439]
[1765822385574,0.63890681,85845.0,85844.0,0.00051439]
[1765822385787,0.77259698,85845.0,85844.0,0.00051439]
[1765822386222,0.65626681,85845.0,85844.0,0.00051439]
[1765822386494,0.002,85845.0,85844.0,0.12448726]
[1765822386715,0.002,85845.0,85844.0,0.13926594]
[1765822387146,0.001,85845.0,85844.0,0.13926594]
[1765822387370,0.001,85845.0,85844.0,0.06588594]
[1765822387574,0.23297629,85846.0,85844.0,0.00312726]
[1765822387781,0.24462037,85848.0,85845.0,0.12236]
[1765822387992,0.23297345,85847.0,85845.0,0.07338]
[1765822388194,0.23297345,85847.0,85846.0,0.07338]
[1765822388509,0.23297345,85847.0,85846.0,0.12397287]
[1765822389118,0.01164849,85848.0,85846.0,0.12397287]
[1765822389317,0.01164754,85855.0,85847.0,0.12236]
[1765822389550,0.01164713,85858.0,85850.0,0.01164822]
[1765822389744,0.011647,85859.0,85855.0,0.04720754]
[1765822389745,0.24458871,85859.0,85855.0,0.04720754]